[Event "2nd AICF Women-GM 2018"]
[Site "Hyderabad"]
[Date "2018.08.14"]
[Round "9"]
[White "Vo, Thi Kim Phung"]
[Black "Nandhidhaa, PV."]
[Result "1-0"]
[ECO "A46"]
[WhiteElo "2377"]
[BlackElo "2266"]
[Annotator "NA"]
[PlyCount "146"]
[EventDate "2018.08.09"]
[EventType "tourn"]
[EventCountry "IND"]
[SourceTitle "playchess.com"]
[Source "ChessBase"]
[SourceQuality "1"]
[TimeControl "40/5400+30:1800+30"]

1. d4 {[%emt 0:00:00]} Nf6 {[%emt 0:00:00]} 2. Nf3 {[%emt 0:00:04]} d5 {[%emt 0:00:05]} 3. c4 {[%emt 0:00:30]} e6 {[%emt 0:00:30]} 4. g3 {[%emt 0:00:30]} Bb4+ {[%emt 0:00:30]} 5. Bd2 {[%emt 0:00:30]} Be7 {[%emt 0:00:30]} 6. Bg2 {[%emt 0:00:30]} c6 {[%emt 0:00:30]} 7. O-O {[%emt 0:00:00]} O-O {[%emt 0:00:00]} 8. Qc2 {[%emt 0:00:00]} b6 {[%emt 0:00:00]} 9. Bf4 {[%emt 0:04:15]} Nbd7 {[%emt 0:04:07]} 10. Nbd2 {[%emt 0:01:45]} Bb7 {[%emt 0:03:32]} 11. e4 {LiveBook: 45 Games} dxe4 {[%emt 0:00:24]} 12. Nxe4 {[%emt 0:01:03]} Nxe4 {[%emt 0:00:29]} 13. Qxe4 {[%emt 0:00:03]} Nf6 {[%emt 0:00:09]} 14. Qe2 {[%emt 0:00:25]} c5 {[%emt 0:00:41]} 15. Rad1 {[%emt 0:01:32]} cxd4 $1 {[%emt 0:00:37]} 16. Nxd4 {[%emt 0:03:39]} Bxg2 {[%emt 0:00:44]} 17. Kxg2 {[%emt 0:00:05]} Qc8 {[%emt 0:00:28]} 18. b3 {[%emt 0:00:32]} Qb7+ {[%emt 0:00:13]} 19. Qf3 {[%emt 0:00:33]} Qxf3+ {[%emt 0:00:27]} 20. Kxf3 {[%emt 0:00:42]} Rac8 {[%emt 0:00:25]} 21. Nb5 {[%emt 0:03:32]} a6 {[%emt 0:00:51]} 22. Na7 {[%emt 0:04:55]} Ra8 {[%emt 0:01:24]} 23. Nc6 {[%emt 0:00:10]} Bc5 {[%emt 0:01:39]} 24. Bd6 {[%emt 0:04:02]} Bxd6 {[%emt 0:00:42]} 25. Rxd6 {[%emt 0:00:07]} Rfe8 {[%emt 0:00:53]} 26. Nb4 {[%emt 0:16:38]} ({White should play} 26. a4 $16) 26... a5 {[%emt 0:00:35]} 27. Nc6 {[%emt 0:00:15]} e5 {[%emt 0:01:26]} 28. h3 {[%emt 0:00:51]} h6 {[%emt 0:01:07]} 29. Re1 {[%emt 0:00:41]} e4+ {[%emt 0:01:41]} 30. Ke3 {[%emt 0:01:49]} Rac8 {[%emt 0:02:07]} 31. Red1 {[%emt 0:00:35]} Kf8 {[%emt 0:03:58]} 32. a4 {[%emt 0:02:45]} Rc7 {[%emt 0:02:01]} 33. Nd4 {[%emt 0:00:18]} Rb7 {[%emt 0:01:30]} 34. Nf5 {[%emt 0:01:33]} h5 {[%emt 0:00:47]} 35. R1d4 {[%emt 0:03:24]} Rbb8 {[%emt 0:02:03]} 36. Rc6 {[%emt 0:01:38]} Re5 {[%emt 0:01:07]} 37. Kf4 {[%emt 0:04:25]} Rc5 {[%emt 0:00:11]} 38. Rcd6 {[%emt 0:03:32]} Ne8 {[%emt 0:07:27]} 39. Rd8 {[%emt 0:01:04]} Rxd8 {[%emt 0:00:03]} 40. Rxd8 {[%emt 0:00:05]} g6 {[%emt 0:00:04]} 41. Nd6 {[%emt 0:30:32]} Ke7 {[%emt 0:30:06]} 42. Rxe8+ {[%emt 0:00:07]} Kxd6 {[%emt 0:00:04]} 43. Kxe4 {[%emt 0:00:40]} Rc7 {[%emt 0:04:38]} 44. Kf4 {[%emt 0:08:34]} Kc5 {[%emt 0:01:49]} 45. Re5+ {[%emt 0:00:15]} Kd4 {[%emt 0:02:02]} 46. Rd5+ {[%emt 0:00:50]} Kc3 {[%emt 0:00:54]} 47. Rb5 {[%emt 0:00:01]} Rc6 {[%emt 0:00:51]} 48. Ke4 {[%emt 0:04:18]} Rf6 {[%emt 0:04:33]} 49. f4 {[%emt 0:02:38]} Rd6 {[%emt 0:00:30]} 50. f5 {[%emt 0:00:30]} gxf5+ {[%emt 0:01:29]} 51. Kxf5 {[%emt 0:03:16]} Rg6 {[%emt 0:00:23]} 52. Kf4 {[%emt 0:00:14]} Kc2 {[%emt 0:00:30]} 53. c5 {[%emt 0:01:40]} bxc5 {[%emt 0:00:05]} 54. Rxc5+ {[%emt 0:00:05]} Kxb3 {[%emt 0:00:05]} 55. Rxa5 {[%emt 0:00:05]} Kb4 {[%emt 0:00:45]} 56. Rf5 {[%emt 0:01:44]} Kxa4 {[%emt 0:01:00]} 57. Rxf7 {[%emt 0:00:12]} Rh6 {[%emt 0:00:14]} 58. Kg5 {[%emt 0:00:46]} Rh8 {[%emt 0:00:02]} 59. Kh4 {[%emt 0:00:31]} Kb5 {[%emt 0:00:29]} 60. Rf5+ {[%emt 0:00:09]} Kc6 {[%emt 0:00:06]} 61. Rxh5 {[%emt 0:00:06]} Rg8 {[%emt 0:00:05]} 62. Re5 $18 {[%emt 0:00:22]} Kd6 {[%emt 0:00:05]} 63. Re2 {[%emt 0:00:13]} Rh8+ {[%emt 0:00:05]} 64. Kg4 {[%emt 0:00:05]} Rg8+ {[%emt 0:00:06]} 65. Kf3 {[%emt 0:00:04]} Rf8+ {[%emt 0:00:09]} 66. Kg2 {[%emt 0:00:02]} Rg8 {[%emt 0:00:37]} 67. h4 {[%emt 0:00:10]} Ra8 {[%emt 0:00:12]} 68. Kh3 {[%emt 0:01:00]} Rb8 {[%emt 0:00:03]} 69. h5 {[%emt 0:00:09]} Rb5 {[%emt 0:00:12]} 70. Kh4 {[%emt 0:00:10]} Rb1 {[%emt 0:00:12]} 71. g4 {[%emt 0:00:09]} Rb4 {[%emt 0:00:09]} 72. h6 {[%emt 0:00:12]} Rb7 {[%emt 0:00:05]} 73. Kh5 {[%emt 0:00:07]} Kd5 1-0

[Event "2nd AICF Women-GM 2018"]
[Site "Hyderabad"]
[Date "2018.08.14"]
[Round "9"]
[White "Pratyusha, Bodda"]
[Black "Chitlange Sakshi"]
[Result "1-0"]
[ECO "B15"]
[WhiteElo "2294"]
[BlackElo "2144"]
[Annotator "ChessBase"]
[PlyCount "71"]
[EventDate "2018.08.09"]
[EventType "tourn"]
[EventCountry "IND"]
[SourceTitle "playchess.com"]
[Source "ChessBase"]
[SourceQuality "1"]
[TimeControl "40/5400+30:1800+30"]

1. e4 {[%emt 0:00:00]} c6 {[%emt 0:00:00]} 2. d4 {[%emt 0:00:00]} d5 {[%emt 0:00:00]} 3. Nc3 {[%emt 0:00:00]} dxe4 {[%emt 0:00:00]} 4. Nxe4 {[%emt 0:00:00]} Nf6 {[%emt 0:00:00]} 5. Nxf6+ {[%emt 0:00:10]} exf6 {[%emt 0:00:00]} 6. c3 {[%emt 0:00:15]} Bd6 {[%emt 0:00:33]} 7. Bd3 {[%emt 0:00:05]} Be6 {[%emt 0:01:10]} 8. Ne2 {[%emt 0:00:06]} Qc7 {[%emt 0:00:28]} 9. Qc2 {[%emt 0:01:27]} h6 {[%emt 0:01:54]} 10. Bd2 {[%emt 0:00:12]} Nd7 {[%emt 0:01:01]} 11. c4 {[%emt 0:02:22]} b6 {[%emt 0:13:51]} 12. h3 {[%emt 0:02:54]} O-O {[%emt 0:07:39]} 13. O-O {[%emt 0:00:42]} Rfe8 {[%emt 0:00:04]} 14. b4 {[%emt 0:04:32]} c5 {[%emt 0:02:15]} 15. bxc5 {[%emt 0:05:31]} bxc5 {[%emt 0:00:05]} 16. d5 {[%emt 0:00:12]} Bf5 {[%emt 0:00:09]} 17. Bxf5 {[%emt 0:00:32]} Rxe2 {[%emt 0:00:01]} 18. Ba5 {[%emt 0:00:29]} Qxa5 19. Qxe2 {[%emt 0:00:16]} Nb6 {[%emt 0:21:56]} 20. Bd3 {[%emt 0:03:08]} Be5 {[%emt 0:03:59]} 21. Rab1 {[%emt 0:00:07]} Na4 {[%emt 0:03:11]} 22. Qe4 {[%emt 0:01:59]} g6 {[%emt 0:01:19]} 23. Rb5 {[%emt 0:04:13]} Qd8 {[%emt 0:03:10]} 24. Qh4 {[%emt 0:00:26]} Kg7 {[%emt 0:02:25]} 25. Rb7 {[%emt 0:02:17]} Bc7 {[%emt 0:02:58]} 26. Qe4 {[%emt 0:03:44]} f5 {[%emt 0:04:00]} 27. Qe3 {[%emt 0:01:46]} Qd6 {[%emt 0:02:35]} 28. g3 {[%emt 0:00:11]} Nb6 {[%emt 0:01:18]} 29. Re1 {[%emt 0:00:47]} Nc8 {[%emt 0:09:46]} 30. f4 {[%emt 0:02:30]} Rb8 {[%emt 0:06:39]} 31. Rxb8 {[%emt 0:00:10]} Bxb8 {[%emt 0:00:01]} 32. Qe5+ {[%emt 0:00:24]} f6 {[%emt 0:02:16]} 33. Qe8 {[%emt 0:00:51]} Qc7 {[%emt 0:01:55]} 34. Re6 {[%emt 0:00:16]} Qb7 {[%emt 0:02:38]} 35. Qd8 {[%emt 0:01:26]} Qb2 {[%emt 0:04:01]} 36. Qd7+ {[%emt 0:00:12]} 1-0

[Event "2nd AICF Women-GM 2018"]
[Site "Hyderabad"]
[Date "2018.08.14"]
[Round "9"]
[White "Aakanksha Hagawane"]
[Black "Munguntuul, Batkhuyag"]
[Result "0-1"]
[ECO "B40"]
[WhiteElo "2292"]
[BlackElo "2428"]
[Annotator "NA"]
[PlyCount "84"]
[EventDate "2018.08.09"]
[EventType "tourn"]
[EventCountry "IND"]
[SourceTitle "playchess.com"]
[Source "ChessBase"]
[SourceQuality "1"]
[TimeControl "40/5400+30:1800+30"]

1. e4 {[%emt 0:00:00]} c5 {[%emt 0:00:00]} 2. Nf3 {[%emt 0:00:00]} e6 {[%emt 0:00:00]} 3. c4 {[%emt 0:00:00]} Nc6 {[%emt 0:00:00]} 4. Nc3 {[%emt 0:00:00]} Nd4 {[%emt 0:00:00]} 5. d3 {[%emt 0:01:12]} Ne7 {[%emt 0:00:40]} 6. Nxd4 {[%emt 0:01:32]} cxd4 {[%emt 0:00:10]} 7. Ne2 {[%emt 0:00:21] N} Nc6 {[%emt 0:00:14] LiveBook: 20 Games} 8. g3 {[%emt 0:01:39]} a6 {[%emt 0:12:06]} 9. Bg2 {[%emt 0:03:13]} b5 {[%emt 0:00:27]} 10. cxb5 {[%emt 0:01:37] axb} axb5 {[%emt 0:00:19]} 11. O-O {[%emt 0:00:07]} Bc5 {[%emt 0:03:36]} 12. f4 {[%emt 0:06:46]} O-O {[%emt 0:02:17]} 13. g4 {[%emt 0:02:07]} e5 {[%emt 0:16:22]} 14. Ng3 {[%emt 0:13:45]} exf4 {[%emt 0:05:45]} 15. Bxf4 {[%emt 0:01:04]} d6 {[%emt 0:00:28]} 16. e5 {[%emt 0:05:01]} dxe5 {[%emt 0:08:49]} 17. Bd2 {[%emt 0:03:38]} e4 {[%emt 0:21:19]} 18. Rc1 {[%emt 0:02:26]} ({Stronger than} 18. Nxe4 Be7 $11) ({Don't do} 18. Bxe4 Qb6) 18... Ne5 {[%emt 0:00:39]} 19. Rxc5 {[%emt 0:17:22]} Bxg4 {[%emt 0:00:08]} 20. Qc2 {[%emt 0:03:23]} Nxd3 {[%emt 0:01:32]} (20... Nf3+ $142 21. Bxf3 exf3) 21. Rg5 {[%emt 0:02:03]} ({Don't take} 21. Bxe4 $6 Nxc5 22. Bxa8 (22. Qxc5 Rxa2 23. Bg5 Qc8 $11) 22... Qxa8 $16) 21... Rc8 {[%emt 0:01:32] [#]} 22. Qb3 $2 {[%emt 0:06:39]} (22. Qb1 $1 $18 f5 {[#]} 23. Bxe4 $1 {[%mdl 512]} (23. Nxf5 Bxf5 24. Rgxf5 Rxf5 $16) 23... fxe4 24. Rxg4) 22... Be6 {[%emt 0:00:58]} 23. Qd1 {[%emt 0:00:21]} (23. Qxb5 $11 Rb8 24. Qa5) 23... e3 {[%emt 0:01:17]} 24. Qh5 $1 {[%emt 0:01:32]} Nf4 $15 {[%emt 0:04:39]} 25. Rxf4 {[%emt 0:12:49]} exd2 {[%emt 0:00:08]} 26. Bf3 {[%emt 0:02:07]} Rc1+ {[%emt 0:05:54]} 27. Kg2 {[%emt 0:00:27]} d1=Q {[%emt 0:00:19]} 28. Bxd1 {[%emt 0:00:03]} Rxd1 {[%emt 0:00:08]} 29. Ne4 {[%emt 0:01:01]} f6 {[%emt 0:08:16]} 30. Rg3 {[%emt 0:03:04]} Rb1 {[%emt 0:01:13]} 31. Rh4 {[%emt 0:01:40]} Rxb2+ {[%emt 0:00:02]} 32. Kf3 {[%emt 0:01:23]} Rf7 {[%emt 0:00:22]} 33. Qxh7+ {[%emt 0:05:13]} Kf8 {[%emt 0:00:02]} 34. Qh8+ {[%emt 0:01:56]} Ke7 {[%emt 0:00:02]} 35. Rxg7 {[%emt 0:00:22]} Qxh8 {[%emt 0:00:18]} 36. Rxf7+ {[%emt 0:00:01]} Bxf7 {[%emt 0:02:06]} 37. Rxh8 {[%emt 0:00:02]} Bxa2 {[%emt 0:01:04]} 38. Rh7+ {[%emt 0:00:44]} Ke6 {[%emt 0:00:04]} 39. Nc5+ {[%emt 0:00:47]} Kd5 {[%emt 0:00:29]} 40. Nd3 {[%emt 0:01:54]} Rb3 {[%emt 0:00:04]} 41. Rd7+ {[%emt 0:04:37]} Ke6 {[%emt 0:01:50]} 42. Rxd4 {[%emt 0:01:09]} Bb1 {[%emt 0:00:03] 0} 0-1

[Event "2nd AICF Women-GM 2018"]
[Site "Hyderabad"]
[Date "2018.08.14"]
[Round "9"]
[White "Babiy, Olga"]
[Black "Monnisha G K"]
[Result "1-0"]
[ECO "C47"]
[WhiteElo "2291"]
[BlackElo "2219"]
[Annotator "NA"]
[PlyCount "103"]
[EventDate "2018.08.09"]
[EventType "tourn"]
[EventCountry "IND"]
[SourceTitle "playchess.com"]
[Source "ChessBase"]
[SourceQuality "1"]
[TimeControl "40/5400+30:1800+30"]

1. e4 {[%emt 0:00:00]} e5 {[%emt 0:00:00]} 2. Nf3 {[%emt 0:00:00]} Nc6 {[%emt 0:00:00]} 3. Nc3 {[%emt 0:00:00]} Nf6 {[%emt 0:00:00]} 4. a3 {[%emt 0:00:00]} d5 {[%emt 0:02:50]} 5. Bb5 {[%emt 0:00:00] C47: Scotch Four Knights and Four Knights with 4 g3} Nxe4 {[%emt 0:06:38]} 6. Qe2 {[%emt 0:00:05]} Nxc3 {[%emt 0:18:29] LiveBook: 17 Games} (6... Qd6 7. Nxe4 dxe4 8. Qxe4 Bd7 9. d3 O-O-O 10. O-O Re8 11. Qe2 Qg6 12. Be3 Bd6 {0-1 (55) Caruana,F (2816)-Kramnik,V (2792) Paris 2018}) 7. Qxe5+ {[%emt 0:00:09]} Qe7 {[%emt 0:01:01]} 8. dxc3 {[%emt 0:04:59]} Bd7 {[%emt 0:00:32]} 9. Qxe7+ {[%emt 0:00:19]} Bxe7 {[%emt 0:00:52]} 10. Bf4 {[%emt 0:00:47]} O-O-O {[%emt 0:01:52]} 11. O-O-O {[%emt 0:01:57]} a6 {[%emt 0:02:22]} 12. Be2 $146 {[%emt 0:00:29]} ({Predecessor:} 12. Ba4 Bg4 {1-0 (39) Vidic,T (2159)-Motycakova,M (2143) Heraklio 2017}) 12... Bf5 {[%emt 0:01:44]} 13. Rhe1 {[%emt 0:02:28]} Bc5 {[%emt 0:05:00]} 14. Nd4 {[%emt 0:00:33]} Bxd4 {[%emt 0:06:11]} 15. cxd4 {[%emt 0:00:14]} Rhe8 {[%emt 0:00:18]} 16. b3 {[%emt 0:12:29]} Re7 {[%emt 0:05:33]} 17. Be3 {[%emt 0:00:25]} Be4 {[%emt 0:02:19]} 18. Bf1 {[%emt 0:02:58]} ({Much weaker is} 18. Bg5 f6 $15) 18... Re6 {[%emt 0:07:05]} 19. Kb2 {[%emt 0:01:28]} Ne7 {[%emt 0:03:43]} 20. f3 {[%emt 0:06:25]} Bg6 {[%emt 0:02:04]} 21. g4 {[%emt 0:00:13]} Re8 {[%emt 0:04:02]} 22. Bf2 {[%emt 0:02:29]} Nc6 {[%emt 0:00:54]} 23. Rxe6 {[%emt 0:00:53]} fxe6 {[%emt 0:01:21]} 24. Bg3 {[%emt 0:03:51]} Rf8 {[%emt 0:02:13]} 25. Bg2 {[%emt 0:00:31]} Kd7 {[%emt 0:02:26]} 26. c4 {[%emt 0:00:40]} dxc4 {[%emt 0:05:28]} 27. bxc4 {[%emt 0:00:20]} Na5 {[%emt 0:00:46]} 28. Kc3 {[%emt 0:00:30]} c6 $2 {[%emt 0:08:22]} (28... b6 $16) 29. c5 $18 {[%emt 0:06:26]} b5 {[%emt 0:01:15]} 30. cxb6 {[%emt 0:00:08]} Nb7 {[%emt 0:00:21]} 31. a4 {[%emt 0:02:42]} a5 {[%emt 0:00:44]} 32. Re1 {[%emt 0:00:37]} Nd6 {[%emt 0:02:27]} 33. Re2 {[%emt 0:05:12]} Rc8 {[%emt 0:01:18]} 34. Rb2 {[%emt 0:01:35]} Nb7 {[%emt 0:01:02]} 35. Be5 {[%emt 0:00:52]} Bf7 {[%emt 0:01:55]} 36. Bxg7 {[%emt 0:02:13]} Rg8 {[%emt 0:00:22]} 37. Be5 {[%emt 0:00:14]} Bg6 {[%emt 0:00:50]} 38. f4 {[%emt 0:02:51]} h5 {[%emt 0:00:19]} 39. h3 {[%emt 0:00:31]} Rc8 {[%emt 0:00:20]} 40. Kc4 {[%emt 0:00:32]} Rg8 {[%emt 0:00:39]} 41. Bf3 {[%emt 0:30:16]} hxg4 {[%emt 0:30:18]} 42. hxg4 {[%emt 0:00:02]} Rf8 {[%emt 0:00:15]} 43. Kc3 {[%emt 0:01:07]} Rc8 {[%emt 0:00:11]} 44. Rh2 {[%emt 0:00:11]} Rf8 {[%emt 0:00:09]} 45. Rh6 {[%emt 0:00:15]} Rg8 {[%emt 0:00:08]} 46. f5 {[%emt 0:00:31]} exf5 {[%emt 0:00:05]} 47. gxf5 {[%emt 0:00:02]} Bxf5 {[%emt 0:00:07]} 48. Bxc6+ {[%emt 0:00:14]} Kc8 {[%emt 0:00:05]} 49. d5 {[%emt 0:00:27]} Be4 {[%emt 0:01:00]} 50. Kd4 {[%emt 0:00:20]} Bf5 {[%emt 0:00:11]} 51. Rf6 {[%emt 0:00:12]} Bh3 {[%emt 0:00:17]} 52. Rf7 {[%emt 0:00:14]} 1-0

[Event "2nd AICF Women-GM 2018"]
[Site "Hyderabad"]
[Date "2018.08.14"]
[Round "9"]
[White "Prudnykova, Olga"]
[Black "Hoang, Thi Bao Tram"]
[Result "1/2-1/2"]
[ECO "B13"]
[WhiteElo "2272"]
[BlackElo "2364"]
[Annotator "NA"]
[PlyCount "80"]
[EventDate "2018.08.09"]
[EventType "tourn"]
[EventCountry "IND"]
[SourceTitle "playchess.com"]
[Source "ChessBase"]
[SourceQuality "1"]
[TimeControl "40/5400+30:1800+30"]

{[%evp 8,69,64,32767,53,47,89,88,95,82,84,64,75,52,53,32767,32767,32767,32767,10,24,32767,12,0,23,32767,32767,22,10,17,12,0,5,10,41,7,45,27,56,32767,32767,32767,32767,32767,32767,32767,32767,32767,32767,32767,32767,-152,-150,-139,-151,-139,-147,32767,32767,32767,32767,32767,43,-93]} 1. e4 {[%emt 0:00:00]} c6 {[%emt 0:00:00]} 2. d4 {[%emt 0:00:00]} d5 {[%emt 0:00:00]} 3. exd5 {[%emt 0:00:00]} Qxd5 {[%emt 0:00:27]} 4. Nc3 {[%emt 0:00:51]} Qd6 {[%emt 0:00:09]} 5. Bc4 {[%emt 0:04:26]} Nf6 {[%emt 0:00:43] B01: Scandinavian Defence} 6. Nge2 {[%emt 0:00:16]} (6. h3 Bf5 7. g4 Be6 8. Bb3 Bd5 9. Nxd5 cxd5 10. Nf3 Nc6 11. Qe2 e6 12. c3 Nd7 13. Be3 {0-1 (45) Edouard,R (2680)-Bauer,C (2658) Nimes 2014}) 6... Bg4 {[%emt 0:02:04] LiveBook: 16 Games} (6... e6 $11 {keeps the balance.}) 7. f3 {[%emt 0:00:38]} Bh5 {[%emt 0:00:09]} 8. Bf4 {[%emt 0:09:40]} Qd8 {[%emt 0:00:13]} 9. Qd2 {[%emt 0:02:04]} e6 {[%emt 0:00:16]} 10. g4 {[%emt 0:05:03]} Bg6 {[%emt 0:00:26]} 11. h4 {[%emt 0:00:09]} h5 $146 {[%emt 0:02:18]} ({Predecessor:} 11... h6 12. h5 Bh7 13. O-O-O {½-½ (50) Kasperek,K (1509)-Gudelajtis,A (1499) Suwalki 2011}) 12. g5 {[%emt 0:00:23]} Nd5 {[%emt 0:04:05]} 13. Nxd5 {[%emt 0:11:59]} cxd5 {[%emt 0:00:25]} 14. Bd3 {[%emt 0:00:03]} Bxd3 {[%emt 0:00:25]} 15. Qxd3 {[%emt 0:00:02]} g6 {[%emt 0:00:32]} 16. Be5 {[%emt 0:00:24]} Rg8 {[%emt 0:00:18]} 17. f4 {[%emt 0:08:35]} Nc6 {[%emt 0:02:25]} 18. c3 {[%emt 0:01:09]} Bd6 {[%emt 0:02:13]} 19. O-O {[%emt 0:01:55]} Ne7 {[%emt 0:02:07]} 20. Ng3 {[%emt 0:00:13]} Qd7 {[%emt 0:02:01]} 21. Rf2 {[%emt 0:04:30]} Bxe5 {[%emt 0:08:17]} 22. fxe5 {[%emt 0:04:32]} Nf5 {[%emt 0:00:31]} 23. Nxf5 {[%emt 0:04:07]} exf5 {[%emt 0:00:33]} 24. c4 {[%emt 0:00:56]} dxc4 {[%emt 0:01:21]} 25. Qxc4 {[%emt 0:00:09]} Rc8 {[%emt 0:01:15]} 26. Qb4 {[%emt 0:03:06]} Qd5 {[%emt 0:05:24]} 27. Rd1 {[%emt 0:06:32]} Rc4 {[%emt 0:04:45]} 28. Qb3 {[%emt 0:01:50]} Kd7 {[%emt 0:00:50]} 29. e6+ {[%emt 0:07:38]} fxe6 {[%emt 0:04:16]} 30. Re2 {[%emt 0:00:03]} Rxd4 {[%emt 0:05:18]} 31. Rxd4 {[%emt 0:03:43]} Qxd4+ {[%emt 0:01:39]} 32. Kf1 {[%emt 0:00:03]} Qd5 {[%emt 0:02:51]} 33. Qb4 {[%emt 0:00:05]} a5 {[%emt 0:03:01]} 34. Qf4 {[%emt 0:00:41] [#]} Qh1+ $14 {[%emt 0:13:59]} ({Besser ist} 34... Qc5 $1 $19 35. Qf3 Rb8 36. Rd2+ Ke7) 35. Kf2 {[%emt 0:00:09]} Rc8 {[%emt 0:00:22]} 36. Rd2+ {[%emt 0:06:49]} Ke8 {[%emt 0:00:42]} 37. Qd4 {[%emt 0:00:27]} Qh2+ {[%emt 0:01:15]} 38. Kf3 {[%emt 0:00:03]} Qh1+ {[%emt 0:00:28]} 39. Kf2 {[%emt 0:00:04]} Qh2+ {[%emt 0:00:14]} 40. Kf3 {[%emt 0:00:05]} Qh1+ {[%emt 0:00:11] Ke4} 1/2-1/2

[Event "2nd AICF Women-GM 2018"]
[Site "Hyderabad"]
[Date "2018.08.14"]
[Round "9"]
[White "Mahalakshmi, M."]
[Black "Nakhbayeva, Guliskhan"]
[Result "0-1"]
[ECO "D02"]
[WhiteElo "2177"]
[BlackElo "2352"]
[Annotator "NA"]
[PlyCount "72"]
[EventDate "2018.08.09"]
[EventType "tourn"]
[EventCountry "IND"]
[SourceTitle "playchess.com"]
[Source "ChessBase"]
[SourceQuality "1"]
[TimeControl "40/5400+30:1800+30"]

1. d4 {[%emt 0:00:00]} Nf6 {[%emt 0:00:00]} 2. Nf3 {[%emt 0:00:00]} d5 {[%emt 0:00:00]} 3. Bf4 {[%emt 0:00:00]} c5 {[%emt 0:00:00]} 4. e3 {[%emt 0:00:11]} Nc6 {[%emt 0:00:07]} 5. Nbd2 {[%emt 0:00:42] D02: Damenbauernspiele} (5. c3 e6 6. Nbd2 cxd4 7. exd4 Nh5 8. Bg5 f6 9. Be3 Bd6 10. Bb5 O-O 11. O-O Ne7 12. Re1 Bd7 13. Bd3 g6 14. Bh6 Rf7 {½-½ (83) Caruana,F (2822)-Aronian,L (2767) chess.com INT 2018}) 5... Qb6 {[%emt 0:00:16] LiveBook: 67 Games} 6. dxc5 {[%emt 0:00:26]} Qxb2 {[%emt 0:00:06]} 7. Be2 {[%emt 0:07:41]} g6 {[%emt 0:04:58]} 8. O-O {[%emt 0:02:52]} Bg7 {[%emt 0:00:04]} 9. c4 {[%emt 0:04:04]} Nh5 $146 {[%emt 0:10:59]} ({Vorgänger:} 9... O-O 10. Qc1 Nh5 11. Qxb2 Bxb2 12. Bh6 Bxa1 13. Bxf8 Kxf8 14. Rxa1 {0-1 (39) Skoberne,J (2563)-Bok,B (2622) Batumi 2018}) 10. Rb1 {[%emt 0:13:36]} Qxa2 {[%emt 0:00:22]} 11. Bc7 {[%emt 0:01:15]} O-O {[%emt 0:04:59]} 12. Qc1 {[%emt 0:03:01]} Bf5 {[%emt 0:10:19]} 13. Rxb7 {[%emt 0:10:58]} Qa6 {[%emt 0:01:49]} 14. Rb3 {[%emt 0:02:20]} Rac8 {[%emt 0:03:44]} (14... dxc4 $15 15. Bxc4 (15. Qxc4 Qc8 $17) (15. Nxc4 Rac8 $11) 15... Qc8) 15. Re1 {[%emt 0:02:56]} d4 {[%emt 0:05:59]} 16. Ra3 {[%emt 0:08:56]} Qb7 {[%emt 0:00:19]} 17. Bg3 {[%emt 0:02:41]} Nxg3 {[%emt 0:00:45]} 18. hxg3 {[%emt 0:00:42]} dxe3 {[%emt 0:02:03]} 19. Rxe3 {[%emt 0:00:17]} Bh6 {[%emt 0:01:54]} 20. Ra3 {[%emt 0:00:52]} Rfd8 {[%emt 0:00:29]} 21. Qc3 {[%emt 0:02:04]} Qb4 {[%emt 0:04:19]} 22. Nf1 {[%emt 0:02:07]} Qxc5 {[%emt 0:00:49]} 23. Ra4 {[%emt 0:05:59] [#]} a5 $1 {[%emt 0:05:41]} 24. Rd1 {[%emt 0:06:45]} Rxd1 {[%emt 0:03:03]} 25. Bxd1 {[%emt 0:00:12]} Rd8 {[%emt 0:00:09]} 26. Be2 {[%emt 0:00:53]} Bg7 {[%emt 0:03:03]} 27. Qe3 {[%emt 0:03:16]} Nd4 {[%emt 0:02:18]} 28. Kh2 {[%emt 0:01:49]} h6 {[%emt 0:07:27]} 29. Nxd4 {[%emt 0:02:04]} Bxd4 {[%emt 0:00:25]} ({Not} 29... Qxd4 30. Rxa5 Be6 31. Ra2 $17) ({Much less strong is} 29... Rxd4 30. Qa3 $17) 30. Qd2 $19 {[%emt 0:00:27]} Ra8 {[%emt 0:03:01]} 31. Ne3 {[%emt 0:04:24]} Bd7 {[%emt 0:01:01]} 32. Ra2 {[%emt 0:00:16]} Bc6 {[%emt 0:00:42]} 33. Nd5 {[%emt 0:02:47]} Bxd5 {[%emt 0:04:12]} 34. cxd5 {[%emt 0:00:03]} Bxf2 {[%emt 0:00:24]} 35. Qxh6 {[%emt 0:04:28]} Be3 {[%emt 0:01:21]} 36. Qh4 {[%emt 0:01:56]} Kg7 {[%emt 0:00:28]} 0-1

[Event "2nd AICF Women-GM 2018"]
[Site "Hyderabad"]
[Date "2018.08.15"]
[Round "10"]
[White "Nandhidhaa, PV."]
[Black "Pratyusha, Bodda"]
[Result "1/2-1/2"]
[ECO "A06"]
[WhiteElo "2266"]
[BlackElo "2294"]
[Annotator "NA"]
[PlyCount "63"]
[EventDate "2018.08.09"]
[EventType "tourn"]
[EventCountry "IND"]
[SourceTitle "playchess.com"]
[Source "ChessBase"]
[SourceQuality "1"]
[TimeControl "40/5400+30:1800+30"]

1. Nf3 {[%emt 0:00:20]} d5 {[%emt 0:00:00]} 2. g3 {[%emt 0:00:52]} Bg4 {[%emt 0:00:00]} 3. Bg2 {[%emt 0:00:12]} c6 {[%emt 0:00:00]} 4. O-O {[%emt 0:00:21]} Nd7 {[%emt 0:00:04]} 5. d4 {[%emt 0:00:29]} Ngf6 {[%emt 0:00:36]} 6. b3 {[%emt 0:00:16]} e6 {[%emt 0:01:52]} 7. Bb2 {[%emt 0:00:36]} Bd6 {[%emt 0:00:43]} 8. Nbd2 {[%emt 0:00:31]} O-O {[%emt 0:00:22]} 9. h3 {[%emt 0:01:34]} Bxf3 {[%emt 0:00:06]} 10. Bxf3 {[%emt 0:00:47]} Re8 {[%emt 0:00:06]} 11. e4 {[%emt 0:02:13]} dxe4 {[%emt 0:00:39]} 12. Nxe4 {[%emt 0:00:12]} Nxe4 {[%emt 0:01:51]} 13. Bxe4 {[%emt 0:00:11]} Nf6 {[%emt 0:00:05]} 14. Bg2 {[%emt 0:00:42]} e5 {[%emt 0:00:08]} 15. dxe5 {[%emt 0:00:48]} Bxe5 {[%emt 0:00:07]} 16. Bxe5 {[%emt 0:00:25]} Rxe5 {[%emt 0:00:23]} 17. Qxd8+ {[%emt 0:00:11]} Rxd8 {[%emt 0:00:04]} 18. Rad1 {[%emt 0:00:27]} Rxd1 {[%emt 0:03:28]} 19. Rxd1 {[%emt 0:00:19]} Re2 {[%emt 0:00:42]} 20. Rd8+ {[%emt 0:01:30]} Re8 {[%emt 0:00:06]} 21. Rxe8+ {[%emt 0:00:04]} Nxe8 {[%emt 0:00:04]} 22. f4 {[%emt 0:00:45]} Kf8 {[%emt 0:00:05]} 23. Kf2 {[%emt 0:00:05]} Ke7 {[%emt 0:00:12]} 24. Ke3 {[%emt 0:00:09]} Kd6 {[%emt 0:00:03]} 25. Kd4 {[%emt 0:00:09]} Nc7 {[%emt 0:00:14]} 26. Be4 {[%emt 0:00:49]} h6 {[%emt 0:00:08]} 27. c4 {[%emt 0:00:37]} Ne6+ {[%emt 0:00:25]} 28. Kc3 {[%emt 0:00:17]} Nc5 {[%emt 0:00:16]} 29. Kd4 {[%emt 0:00:32]} Ne6+ {[%emt 0:00:04]} 30. Kc3 {[%emt 0:00:20]} Nc5 {[%emt 0:00:13]} 31. Kd4 {[%emt 0:00:19]} Ne6+ {[%emt 0:00:05]} 32. Kc3 {Ke5} 1/2-1/2